Cogmind - Beta 9.6 @@@ ROGUE MODE // 2020.06.27 @ 18:49:24 Player: Trione Result: Destroyed by as-24090 with Assembled Rifle Performance ------------- Evolutions (0) 0 Regions Visited (4) 800 Robots Destroyed (31) 155 Value Destroyed (697) 697 Prototype IDs (2) 40 Alien Tech Used (0) 0 Bonus (0) 0 TOTAL SCORE: 1692 Bonus ------- None Cogmind --------- Core Integrity 0/250 Matter 299/300 Energy 100/100 System Corruption 0% Temperature Cool (0) Movement Treading (180) Ox1 Location -9/Mines Parts ------- > --- POWER (1) -------- (None) > --- PROPULSION (2) --- Light Treads Light Treads > --- UTILITY (2) ------ Large Storage Unit High-capacity Storage Unit > --- WEAPON (2) ------- EM Pulse Gun Assault Rifle > --- INVENTORY (18) --- Light Treads Light Treads Wheel Large Storage Unit Large Storage Unit High-capacity Storage Unit Peak State ------------ > --- POWER ------------ Light Ion Engine > --- PROPULSION ------- Compact Wheel Compact Wheel > --- UTILITY ---------- Large Storage Unit High-capacity Storage Unit > --- WEAPON ----------- Assault Rifle Light Assault Rifle > --- INVENTORY -------- Light Ion Engine Light Treads Light Treads Light Treads Light Treads Large Storage Unit Large Storage Unit Large Storage Unit Large Storage Unit Assault Rifle [Rating: 8] Favorites ----------- Power Light Ion Engine Engine Light Ion Engine Propulsion Light Treads Treads Light Treads Wheel Compact Wheel Utility High-capacity Storage Unit Storage High-capacity Storage Unit Weapon Assault Rifle Energy Gun EM Pulse Gun Ballistic Gun Assault Rifle Build | -11 -10 -10 -10 -9 ------- Run | Scr Mat Min Exi Min Slots Evolved . | . . . . . Power . | . . . . . Propulsion . | . . . . . Utility . | . . . . . Weapon . | . . . . . Parts Attached 22 | 7 14 1 . . Power 2 | 1 1 . . . Engine 2 | 1 1 . . . Core . | . . . . . Reactor . | . . . . . Propulsion 8 | 2 6 . . . Treads 4 | . 4 . . . Leg . | . . . . . Wheel 4 | 2 2 . . . Hover . | . . . . . Flight . | . . . . . Utility 6 | 2 4 . . . Device . | . . . . . Storage 6 | 2 4 . . . Processor . | . . . . . Hackware . | . . . . . Protection . | . . . . . Artifact . | . . . . . Weapon 6 | 2 3 1 . . Energy Gun 3 | . 2 1 . . Energy Cannon . | . . . . . Ballistic Gun 3 | 2 1 . . . Ballistic Cannon . | . . . . . Launcher . | . . . . . Special Weapon . | . . . . . Impact Weapon . | . . . . . Slashing Weapon . | . . . . . Piercing Weapon . | . . . . . Special Melee Weapon . | . . . . . Unidentified Prototypes . | . . . . . Parts Lost 8 | . 6 1 . 1 Power 2 | . 1 . . 1 Propulsion 2 | . 2 . . . Utility . | . . . . . Weapon 4 | . 3 1 . . Highest Loss Streak 3 | . 3 1 . 1 Average Slot Usage (%) 97 | . 95 99 100 100 Engine 14 | . 14 14 14 14 Treads 18 | . 14 28 28 28 Wheel 9 | . 13 . . . Storage 27 | . 27 28 28 28 Energy Gun 7 | . 4 13 14 14 Ballistic Gun 18 | . 20 14 14 14 Naked Turns . | . . . . . Heaviest Build 55 | 14 55 55 55 52 Greatest Support 40 | 32 40 40 40 40 Greatest Overweight (x) 3 | . 3 1 1 1 Average Overweight (x) 1 | . 1 1 1 1 Largest Inventory Capacity 18 | 8 18 18 18 18 Average Capacity 16 | 5 17 18 18 18 Most Carried 11 | 4 11 7 6 6 Average Carried 6 | 2 6 6 6 6 Final Capacity 18 | 8 18 18 18 18 Final Carried 7 | 4 7 6 6 6 Class Distribution -------------------- 100% | Mutant Dominant Class ---------------- Mutant | -10/Materials Mutant | -10/Mines Mutant | -10/Exiles Mutant | -9/Mines Resources | -11 -10 -10 -10 -9 ----------- Run | Scr Mat Min Exi Min Matter Collected 810 | 280 495 35 . . Remotely . | . . . . . Salvage Created 1124 | 83 918 123 . . Parts 71 | 3 58 10 . . Haulers Intercepted 2 | . 2 . . . Recyclers Shooed 1 | . 1 . . . Parts Field Recycled . | . . . . . Retrieved Matter . | . . . . . Parts Self-Destructed . | . . . . . Prevented . | . . . . . Kills | -11 -10 -10 -10 -9 ------- Run | Scr Mat Min Exi Min Combat Hostiles Destroyed 21 | . 16 5 . . Guns 21 | . 16 5 . . Classes Destroyed 8 | 1 7 . . . Worker 1 | . 1 . . . Tunneler 1 | . 1 . . . Hauler 2 | . 2 . . . Recycler 2 | 1 1 . . . Operator 1 | . 1 . . . Watcher 3 | . 3 . . . Swarmer 6 | . 3 3 . . Grunt 15 | . 13 2 . . Best Kill Streak 4 | 1 4 3 . . Combat Bots Only 3 | . 2 3 . . Max Kills in Single Turn 1 | 1 1 1 . . Gunslinging . | . . . . . Exploded . | . . . . . Melee . | . . . . . Uniques/NPCs Destroyed . | . . . . . Combat | -11 -10 -10 -10 -9 -------- Run | Scr Mat Min Exi Min Damage Taken 1123 | . 879 160 . 84 Core 251 | . 206 27 . 18 Absorbed by Shields . | . . . . . Core Remaining (%) 100 | 100 . . . . Volleys Fired 116 | 5 99 10 . 2 Largest 2 | 2 2 2 . 2 Hottest 70 | 40 70 70 . 60 Shots Fired 196 | 10 162 20 . 4 Gun 196 | 10 162 20 . 4 Cannon . | . . . . . Launcher . | . . . . . Special . | . . . . . Kinetic 165 | 10 143 10 . 2 Thermal 25 | . 19 6 . . Explosive . | . . . . . Electromagnetic 6 | . . 4 . 2 Robot Hit Streak 11 | 4 11 5 . 6 Robot Miss Streak 3 | 2 3 2 . 1 Penetration Max . | . . . . . Secondary Targets 4 | . 1 3 . . Max Gunslinging Chain 1 | . 1 1 . . Shots Hit Robots 124 | 6 102 13 . 3 Core Hits 54 | 2 43 8 . 1 Critical Hits 2 | . 2 . . . Critical Kills 2 | . 2 . . . Critical Parts Destroyed . | . . . . . Melee Attacks . | . . . . . Impact . | . . . . . Slashing . | . . . . . Piercing . | . . . . . Sneak Attacks . | . . . . . Combat Hostiles . | . . . . . Follow-up Attacks . | . . . . . Damage Inflicted 1576 | 68 1308 163 . 37 Guns 1576 | 68 1308 163 . 37 Cannons . | . . . . . Explosions . | . . . . . Melee . | . . . . . Ramming . | . . . . . Kinetic 1290 | 68 1135 74 . 13 Thermal 235 | . 173 62 . . Explosive . | . . . . . Electromagnetic 51 | . . 27 . 24 Impact . | . . . . . Slashing . | . . . . . Piercing . | . . . . . Highest Corruption . | . . . . . Average Corruption . | . . . . . Corruption Purged . | . . . . . Overload Shots . | . . . . . Overflow Damage . | . . . . . Projectiles . | . . . . . Explosions . | . . . . . Melee . | . . . . . Knockbacks . | . . . . . Impact . | . . . . . Kinetic . | . . . . . Secondary . | . . . . . Self-Inflicted Damage . | . . . . . Shots . | . . . . . Rammed . | . . . . . Targets Rammed . | . . . . . Kicked . | . . . . . Crushed . | . . . . . Highest Temperature 70 | . 69 70 . . Average Temperature 27 | . 23 38 . . Received Heat Transfer 574 | . 462 72 . 40 Siege Activations . | . . . . . Robots Corrupted . | . . . . . Combat Hostiles . | . . . . . Parts Fried . | . . . . . Impact Corruptions . | . . . . . Robots Melted . | . . . . . Combat Hostiles . | . . . . . Parts Melted 2 | . 2 . . . Heat Transferred 703 | . 518 185 . . Parts Sabotaged . | . . . . . Parts Stolen . | . . . . . Parts Stripped . | . . . . . Power Chain Reactions . | . . . . . Missiles Intercepted . | . . . . . Alert | -11 -10 -10 -10 -9 ------- Run | Scr Mat Min Exi Min Peak Influence 185 | 5 185 160 . . Average Influence 91 | . 84 149 . . Maximum Alert Level . | . . . . . Low Security (%) 100 | 100 100 100 . 100 Level 1 . | . . . . . Level 2 . | . . . . . Level 3 . | . . . . . Level 4 . | . . . . . Level 5 . | . . . . . High Security . | . . . . . Max Security . | . . . . . Squads Dispatched 3 | . 3 . . . Investigation 1 | . 1 . . . Extermination . | . . . . . Reinforcement 2 | . 2 . . . Assault . | . . . . . Garrison . | . . . . . Intercept . | . . . . . Construction Impeded . | . . . . . Haulers Reinforced . | . . . . . Stealth | -11 -10 -10 -10 -9 --------- Run | Scr Mat Min Exi Min Distress Signals 2 | . 2 . . . Communications Jammed . | . . . . . Distress Signals . | . . . . . Times Spotted 48 | . 26 4 . 18 Peak Tracking Total 23 | . 4 2 . 23 Tactical Retreats 1 | . 1 . . . Traps | -11 -10 -10 -10 -9 ------- Run | Scr Mat Min Exi Min Traps Triggered 1 | . 1 . . . Indirectly . | . . . . . Trap Hack Attempts . | . . . . . Triggered . | . . . . . Disarmed . | . . . . . Reprogrammed . | . . . . . Reused . | . . . . . Traps Extracted . | . . . . . Installed . | . . . . . Triggered . | . . . . . Machines | -11 -10 -10 -10 -9 ---------- Run | Scr Mat Min Exi Min Machines Disabled . | . . . . . Max in Single Turn . | . . . . . Machines Sabotaged . | . . . . . Garrisons Compromised . | . . . . . Overloaded Fab Kills . | . . . . . Fab Network Shutdowns . | . . . . . Hacking | -11 -10 -10 -10 -9 --------- Run | Scr Mat Min Exi Min Machines Accessed 6 | . 5 . 1 . Terminals 3 | . 3 . . . Fabricators . | . . . . . Repair Stations 1 | . 1 . . . Recycling Units 1 | . 1 . . . Scanalyzers . | . . . . . Garrison Access . | . . . . . Total Hacks 13 | . 12 . 1 . Successful 11 | . 10 . 1 . Failed 2 | . 2 . . . Catastrophic . | . . . . . Database Lockouts . | . . . . . Manual 7 | . 7 . . . Terminals 9 | . 9 . . . Fabricators . | . . . . . Repair Stations 2 | . 2 . . . Recycling Units 1 | . 1 . . . Scanalyzers . | . . . . . Garrison Access . | . . . . . Terminal Hacks 4 | . 3 . 1 . Record 1 | . . . 1 . Prototype ID Bank 1 | . 1 . . . Emergency Access Points 1 | . 1 . . . Zone Layout 1 | . 1 . . . Fabricator Hacks . | . . . . . Repair Station Hacks 2 | . 2 . . . Scan Component 1 | . 1 . . . Repair 1 | . 1 . . . Recycling Unit Hacks 1 | . 1 . . . Retrieve Components 1 | . 1 . . . Scanalyzer . | . . . . . Garrison Access Hacks . | . . . . . Unauthorized Hacks 4 | . 4 . . . Terminals 4 | . 4 . . . Track 2 | . 2 . . . Botnet 2 | . 2 . . . Fabricators . | . . . . . Repair Stations . | . . . . . Recycling Units . | . . . . . Scanalyzers . | . . . . . Garrison Access . | . . . . . Data Cores Recovered . | . . . . . Used . | . . . . . Hacking Detections 2 | . 2 . . . Full Trace Events . | . . . . . Feedback Events . | . . . . . Feedback Blocked . | . . . . . Robot Schematics Acquired . | . . . . . Robots Built . | . . . . . Matter . | . . . . . Time . | . . . . . Total Robot Build Rating . | . . . . . Part Schematics Acquired . | . . . . . Parts Built . | . . . . . Matter . | . . . . . Time . | . . . . . Total Part Build Rating . | . . . . . Parts Repaired 1 | . 1 . . . Time 26 | . 26 . . . Parts Recycled . | . . . . . Recycled Matter . | . . . . . Retrieved Matter . | . . . . . Retrieved Components 3 | . 3 . . . Parts Scanalyzed . | . . . . . Part Schematics Acquired . | . . . . . Parts Damaged . | . . . . . Bothacking | -11 -10 -10 -10 -9 ------------ Run | Scr Mat Min Exi Min Used RIF Installer . | . . . . . Robots Hacked . | . . . . . Non-combat . | . . . . . Combat . | . . . . . Robot Hacks Applied . | . . . . . Relay Couplers Released . | . . . . . Robots Rewired . | . . . . . Allies Hacked . | . . . . . Hacks Repelled . | . . . . . Allies | -11 -10 -10 -10 -9 -------- Run | Scr Mat Min Exi Min Total Allies . | . . . . . Largest Group . | . . . . . Highest-Rated Group . | . . . . . Highest-Rated Ally . | . . . . . Total Orders . | . . . . . Ally Attacks . | . . . . . Total Damage . | . . . . . Kills . | . . . . . Allies Corrupted . | . . . . . Allies Melted . | . . . . . Intel | -11 -10 -10 -10 -9 ------- Run | Scr Mat Min Exi Min Robot Analysis Total . | . . . . . Derelict Logs Recovered . | . . . . . Drone Launches . | . . . . . Drone Recoveries . | . . . . . Exploration | -11 -10 -10 -10 -9 ------------- Run | Scr Mat Min Exi Min Turns Passed 2146 | 108 1414 373 243 8 Spaces Moved 1200 | 80 792 191 136 1 Core 4 | 4 . . . . Treads 630 | . 302 191 136 1 Legs . | . . . . . Wheels 566 | 76 490 . . . Hover . | . . . . . Flight . | . . . . . Fastest Speed 50 | 50 100 180 180 180 Average Speed 146 | 97 137 180 180 180 Slowest Speed 180 | 100 180 180 180 180 Overloaded Moves . | . . . . . Propulsion Burnouts . | . . . . . Robots Hopped . | . . . . . Cave-ins Triggered . | . . . . . Exploration Rate (%) 40 | 4 95 46 53 3 Regions Visited 4 Branch Regions 3 Pre-discovered Areas 2 | . . 1 1 . Known Exits Taken . | . . . . . Unknown Exits Taken 4 | 1 1 1 1 . Scrap Searched 1 | . . 1 . . Spaces Dug . | . . . . . Terrain Destroyed . | . . . . . Melee . | . . . . . Projectile . | . . . . . AOE . | . . . . . Actions | -11 -10 -10 -10 -9 --------- Run | Scr Mat Min Exi Min Total 1391 | 97 955 201 135 3 Wait 41 | 2 39 . . . Move 1196 | 79 791 190 135 1 Hop . | . . . . . Pick Up 11 | 4 7 . . . Fast Attach 11 | 7 4 . . . Attach 5 | . 4 1 . . Detach 1 | . 1 . . . Swap 6 | . 6 . . . Drop 4 | . 4 . . . Fire 116 | 5 99 10 . 2 Melee . | . . . . . Ram . | . . . . . Kick . | . . . . . Crush . | . . . . . Escape Stasis . | . . . . . Rewire . | . . . . . Trap . | . . . . . Miscellaneous . | . . . . . Route ------- -11/Scrapyard -10/Materials (discovered 4 exits: [*Mat x3] / [*Min]) -10/Mines -10/Exiles -9/Mines History --------- Turn | Location | Event 26 | -11/Scrapyard | Discovered new exit (range 16) 109 | -11/Scrapyard | Entered Materials 278 | -10/Materials | Repaired Hcp. Storage Unit 300 | -10/Materials | Build established: Mutant 396 | -10/Materials | Discovered new exit (range 10) 602 | -10/Materials | Discovered new exit (range 16) 659 | -10/Materials | Core integrity fell below 50% 891 | -10/Materials | Lost 3 parts (1p1n1w) 1064 | -10/Materials | Discovered new exit (range 9) 1343 | -10/Materials | Discovered new exit (range 13) 1464 | -10/Materials | Core integrity fell below 20% 1523 | -10/Materials | Entered Mines 1562 | -10/Mines | Met a Derelict bent on vengeance 1728 | -10/Mines | Learned location of Storage (-7) 1887 | -10/Mines | Deemed a non-threat by the Exiles lab entrance 1889 | -10/Mines | Discovered new exit (range 5) 1896 | -10/Mines | Entered Exiles 1941 | -10/Exiles | Met 8R-AWN 1970 | -10/Exiles | Met EX-HEX 2024 | -10/Exiles | Met EX-BIN 2046 | -10/Exiles | Met EX-DEC 2062 | -10/Exiles | Learned location of Zion (-7) 2120 | -10/Exiles | Discovered new exit (range 14) 2139 | -10/Exiles | Entered Mines 2140 | -9/Mines | Assembled infested the area 2147 | -9/Mines | Destroyed by as-24090 with Assembled Rifle Last Messages --------------- for a sweet deal? 02026_ EX-BIN: "Please do it. The faster we get more data and tweak this thing to perfection, the faster I can get back to my spacelab designs." EX-DEC: Ah I see we have a visitor. One wrong move in here and I'll invert your atomic chain! 02048_ EX-DEC: "Oops, I hope HEX didn't hear that..." 02062_ Connecting with EX-Message Board... 02062_ Current location identified: Exiles >>Record "MSG001714-01*" PINNED - TO ALL TESTERS: Stay away from Zion. Imprinter means us harm and is serious about it. World map updated: -7/Zion. 02120_ EXIT=FOUND LOCATION=UNKNOWN GOAL=ESCAPE 02140_ ALERT: Infestation in the mines, dispatching Demolisher response squad. 02140_ S-10 Pest IFF system glitched. 02143_ S-10 Pest destroyed. 02144_ Lgt. Ion Engine destroyed. Map ----- +----------------------------------------------------+ | ??????????????????????????????????? | | ??????????????????????????????????? | | ??????????????????????????????????? | | ??????????????????????????????????? | | ??????????????????????????????????? | | ??????????????????????????????????? | | ??????????????????????????????????? | | ??????????????????????????????????? | | ??????????????????????????????????? | | ??????????????????????????????????? | | ??????????????????????????????????? | | ??????????????????????????????????? | | ??????????????????????????????????? | | ???????????????????????????#??????? | | ?????????????????????????## ??????? | | ???????????????????????## ??????? | | ???????????????????????# ???????? | | ???????????????????????# ???????? | | ???????????????????????# ???????? | | ???????????????????????# a#???????? | | ???????????????????????#aa#???????? | | ???????????????????????# #???????? | | ?????????????????????###aa##??????? | | ?????????????????????# aa%####???? | | ?????????????????????# aa* $#???? | | ?????????????????????#aa @ # #???? | | ?????????????????????#aaa #??????? | | ?????????????????????# s #??????? | | ?????????????????????# s #??????? | | ?????????????????????#######??????? | | ??????????????????????????????????? | | ??????????????????????????????????? | | ??????????????????????????????????? | | ??????????????????????????????????? | | ??????????????????????????????????? | | ??????????????????????????????????? | | ??????????????????????????????????? | | ??????????????????????????????????? | | ??????????????????????????????????? | | ??????????????????????????????????? | | ??????????????????????????????????? | | ??????????????????????????????????? | | ??????????????????????????????????? | | ??????????????????????????????????? | | ??????????????????????????????????? | | ??????????????????????????????????? | | ??????????????????????????????????? | | ??????????????????????????????????? | | ??????????????????????????????????? | | ??????????????????????????????????? | +----------------------------------------------------+ Best States ------------- Heat Dissipation 25 Energy Generation 10 Energy Capacity 125 Matter Stores 300 Matter Capacity 300 Sight Range 16 Terrain Scan Density 10 Evasion (%) 40 Recoil Reduction 2 Item Schematics ----------------- None Robot Schematics ------------------ None Fabricated ------------ Nothing Alien Tech Used ----------------- None Achievements -------------- None Challenges ------------ None Game ------ Seed AluminumPhasingMegatreads Manual? 0 Play Time 00:11:47 Cumulative 1050.1 hours Start 2020.06.27 @ 18:31:06 End 2020.06.27 @ 18:49:24 Sessions 1 Manual Loads 0 Difficulty Rogue Special Mode None Game No. 401 Rogue 401 Adventurer 0 Explorer 0 Win Type - Total 25 Types 13/1/7/0/0/0/4 Lore% 96 Gallery% 98 Achievement% 83 Wizard Run 0 Options --------- ASCII 0 Keyboard 0 Movement Vi Keybinds 0 Fullscreen 0 Font 12/Crisp Map View 76x50 Tactical HUD 1 Map Filters NONE Filters NONE Steam 1 RUN: db79b47d-5751-4338-84c0-96316a60b0a3